[Event "22nd OIBM 2018"]
[Site "Gmund am Tegernsee"]
[Date "2018.10.27"]
[Round "1"]
[White "Banusz, Tamas"]
[Black "Lettl, Gerhard"]
[Result "1-0"]
[ECO "A06"]
[WhiteElo "2606"]
[BlackElo "2132"]
[Annotator "RC"]
[PlyCount "43"]
[EventDate "2018.10.27"]
[EventType "swiss"]
[EventCountry "GER"]
[SourceTitle "playchess.com"]
[Source "ChessBase"]
[SourceQuality "1"]
[TimeControl "40/5400+30:1800+30"]

1. Nf3 {[%emt 0:00:00]} d5 {[%emt 0:00:00]} 2. g3 {[%emt 0:00:00]} Nf6 {[%emt 0:00:16]} 3. Bg2 {[%emt 0:00:00]} e6 {[%emt 0:00:43]} 4. O-O {[%emt 0:00:16]} c5 {[%emt 0:00:27]} 5. c4 {[%emt 0:02:23]} Nc6 {[%emt 0:02:23]} 6. cxd5 {[%emt 0:00:51]} exd5 {[%emt 0:00:35]} 7. d4 {[%emt 0:00:07]} Be7 {[%emt 0:07:45]} 8. dxc5 {[%emt 0:00:24]} Bxc5 {[%emt 0:00:07]} 9. a3 {[%emt 0:00:10]} a5 {[%emt 0:00:46]} 10. Nc3 {[%emt 0:04:15]} O-O {[%emt 0:09:40]} 11. Bg5 {[%emt 0:01:31]} Be6 {[%emt 0:00:55]} 12. Rc1 {[%emt 0:01:20]} Be7 {[%emt 0:00:30]} 13. Qa4 {[%emt 0:08:30]} h6 {[%emt 0:07:11]} 14. Bf4 {[%emt 0:04:03]} Rc8 {[%emt 0:09:55]} 15. Rfd1 {[%emt 0:02:49]} Qb6 {[%emt 0:07:01]} 16. Qb5 {[%emt 0:01:56]} Qxb5 {[%emt 0:05:21]} 17. Nxb5 {[%emt 0:00:08]} Rfd8 {[%emt 0:00:29]} 18. Bc7 {[%emt 0:02:08]} Rd7 {[%emt 0:01:51]} 19. Bxa5 {[%emt 0:01:38]} Ra8 {[%emt 0:06:10]} 20. Be1 {[%emt 0:00:49]} d4 {[%emt 0:06:52]} 21. Nfxd4 {[%emt 0:03:18]} Rad8 {[%emt 0:05:05]} 22. e3 {[%emt 0:00:34]} 1-0

[Event "22nd OIBM 2018"]
[Site "Gmund am Tegernsee"]
[Date "2018.10.27"]
[Round "1"]
[White "Zajogin, Alexander"]
[Black "Proschmann, Tino"]
[Result "1-0"]
[ECO "D10"]
[WhiteElo "2408"]
[BlackElo "2091"]
[Annotator "NA"]
[PlyCount "81"]
[EventDate "2018.10.27"]
[EventType "swiss"]
[EventCountry "GER"]
[SourceTitle "playchess.com"]
[Source "ChessBase"]
[SourceQuality "1"]
[TimeControl "40/5400+30:1800+30"]

1. d4 {[%emt 0:00:00]} d5 {[%emt 0:00:00]} 2. c4 {[%emt 0:00:00]} c6 {[%emt 0:00:00]} 3. Nc3 {[%emt 0:01:32]} dxc4 {[%emt 0:00:05]} 4. e3 {[%emt 0:00:33]} b5 {[%emt 0:00:34]} 5. a4 {[%emt 0:03:57]} b4 {[%emt 0:00:23]} 6. Nb1 {[%emt 0:01:51]} Ba6 {[%emt 0:02:08]} 7. Nf3 {[%emt 0:01:46]} Qa5 {[%emt 0:06:18]} 8. Be2 {[%emt 0:08:04]} c3 {[%emt 0:05:10]} 9. bxc3 {[%emt 0:02:22]} Bxe2 {[%emt 0:10:37]} 10. Qxe2 {[%emt 0:00:59]} Qa6 {[%emt 0:00:28]} 11. cxb4 {[%emt 0:00:56]} Qxe2+ {[%emt 0:02:12]} 12. Kxe2 {[%emt 0:00:09]} Na6 {[%emt 0:00:16]} 13. b5 {[%emt 0:01:43]} cxb5 {[%emt 0:06:13]} 14. axb5 {[%emt 0:00:12]} Nc7 {[%emt 0:00:42]} 15. Nc3 {[%emt 0:00:12]} e6 {[%emt 0:03:25]} 16. Ba3 {[%emt 0:00:55]} Bxa3 {[%emt 0:09:10]} 17. Rxa3 {[%emt 0:00:18]} Ne7 {[%emt 0:00:58]} 18. Rha1 {[%emt 0:03:43]} Nc8 {[%emt 0:06:36]} 19. Ne5 {[%emt 0:00:48]} Rb8 {[%emt 0:08:44]} 20. Rxa7 {[%emt 0:04:25]} Nxa7 {[%emt 0:06:20]} 21. Rxa7 {[%emt 0:00:11]} Nxb5 {[%emt 0:14:08]} 22. Nxb5 {[%emt 0:00:17]} O-O {[%emt 0:00:10]} 23. Nd6 {[%emt 0:01:09]} f6 {[%emt 0:05:17]} 24. Nd7 {[%emt 0:02:15]} Rb2+ {[%emt 0:00:36]} 25. Kf3 {[%emt 0:00:10]} Rd8 {[%emt 0:01:13]} 26. Ne4 {[%emt 0:00:35]} Rc8 {[%emt 0:01:32]} 27. Ndxf6+ {[%emt 0:07:47]} gxf6 {[%emt 0:00:15]} 28. Nxf6+ {[%emt 0:00:03]} Kf8 {[%emt 0:00:32]} 29. Nxh7+ {[%emt 0:00:06]} Kg8 {[%emt 0:01:31]} 30. Nf6+ {[%emt 0:00:15]} Kf8 {[%emt 0:00:19]} 31. g4 {[%emt 0:00:10]} Rcc2 {[%emt 0:02:10]} 32. Ne4 {[%emt 0:00:26]} Rb5 {[%emt 0:02:48]} 33. g5 {[%emt 0:05:46]} Rf5+ {[%emt 0:00:40]} 34. Kg4 {[%emt 0:00:17]} Rc1 {[%emt 0:01:24]} 35. Kh5 {[%emt 0:03:14]} Rf7 {[%emt 0:01:12]} 36. Ra8+ {[%emt 0:00:24]} Kg7 {[%emt 0:00:30]} 37. Nf6 {[%emt 0:01:30]} Rb7 {[%emt 0:01:13]} 38. Rg8+ {[%emt 0:00:14]} Kf7 {[%emt 0:00:11]} 39. Kh6 {[%emt 0:00:14]} Rb2 {[%emt 0:00:38]} 40. Rg7+ {[%emt 0:00:13]} Kf8 {[%emt 0:00:17]} 41. Kg6 {[%emt 0:30:12]} 1-0

[Event "22nd OIBM 2018"]
[Site "Gmund am Tegernsee"]
[Date "2018.10.27"]
[Round "1"]
[White "Colpe, Malte"]
[Black "Sarvadh Sathiaram"]
[Result "1-0"]
[ECO "A48"]
[WhiteElo "2379"]
[BlackElo "2089"]
[Annotator "NA"]
[PlyCount "59"]
[EventDate "2018.10.27"]
[EventType "swiss"]
[EventCountry "GER"]
[SourceTitle "playchess.com"]
[Source "ChessBase"]
[SourceQuality "1"]
[TimeControl "40/5400+30:1800+30"]

1. d4 {[%emt 0:00:00]} Nf6 {[%emt 0:00:00]} 2. Nf3 {[%emt 0:00:00]} g6 {[%emt 0:00:01]} 3. Bg5 {[%emt 0:01:00]} Ne4 {[%emt 0:01:32]} 4. Bh4 {[%emt 0:00:26]} Bg7 {[%emt 0:00:22]} 5. Nbd2 {[%emt 0:01:53]} Nxd2 {[%emt 0:00:13]} 6. Qxd2 {[%emt 0:00:09]} d5 {[%emt 0:00:18]} 7. e3 {[%emt 0:03:48]} b6 {[%emt 0:04:41]} 8. Bb5+ {[%emt 0:04:33]} Bd7 {[%emt 0:01:26]} 9. a4 {[%emt 0:02:13]} a6 {[%emt 0:02:10]} 10. Bd3 {[%emt 0:04:01]} c5 {[%emt 0:01:58]} 11. c3 {[%emt 0:11:26]} Bc6 {[%emt 0:11:11]} 12. O-O {[%emt 0:04:21]} O-O {[%emt 0:04:22]} 13. Qe2 {[%emt 0:09:44]} Qd7 {[%emt 0:08:55]} 14. e4 {[%emt 0:09:21]} e6 {[%emt 0:01:38]} 15. Rfe1 {[%emt 0:13:39]} Bxa4 {[%emt 0:16:44]} 16. exd5 {[%emt 0:00:37]} exd5 {[%emt 0:01:14]} 17. Ne5 {[%emt 0:02:08]} Bxe5 {[%emt 0:05:57]} 18. dxe5 {[%emt 0:01:35]} c4 {[%emt 0:02:02]} 19. Qe3 {[%emt 0:08:18]} Qc6 {[%emt 0:07:40]} 20. Bf5 {[%emt 0:04:52]} Re8 {[%emt 0:10:43]} 21. Qh6 {[%emt 0:02:27]} f6 {[%emt 0:04:43]} 22. exf6 {[%emt 0:05:05]} Ra7 {[%emt 0:02:13]} 23. Bxg6 {[%emt 0:05:12]} hxg6 {[%emt 0:04:02]} 24. Qxg6+ {[%emt 0:00:11]} Kh8 {[%emt 0:00:58]} 25. Rxe8+ {[%emt 0:03:41]} Qxe8 {[%emt 0:00:09]} 26. f7 {[%emt 0:00:50]} Rxf7 {[%emt 0:00:56]} 27. Bf6+ {[%emt 0:00:00]} Rxf6 {[%emt 0:00:05]} 28. Qxf6+ {[%emt 0:00:00]} Kg8 {[%emt 0:00:14]} 29. Qg5+ {[%emt 0:00:00]} Kf8 {[%emt 0:00:49]} 30. Qxd5 {[%emt 0:00:45]} 1-0

[Event "22nd OIBM 2018"]
[Site "Gmund am Tegernsee"]
[Date "2018.10.27"]
[Round "1"]
[White "Pirrot, Dieter"]
[Black "Hallmann, Norbert"]
[Result "1-0"]
[ECO "C02"]
[WhiteElo "2373"]
[BlackElo "2088"]
[Annotator "NA"]
[PlyCount "65"]
[EventDate "2018.10.27"]
[EventType "swiss"]
[EventCountry "GER"]
[SourceTitle "playchess.com"]
[Source "ChessBase"]
[SourceQuality "1"]
[TimeControl "40/5400+30:1800+30"]

1. e4 {[%emt 0:00:00]} e6 {[%emt 0:00:15]} 2. d4 {[%emt 0:00:00]} d5 {[%emt 0:00:10]} 3. e5 {[%emt 0:00:00]} c5 {[%emt 0:00:26]} 4. c3 {[%emt 0:00:00]} Nc6 {[%emt 0:00:36]} 5. Nf3 {[%emt 0:00:19]} Qb6 {[%emt 0:03:09]} 6. Bd3 {[%emt 0:01:04]} Bd7 {[%emt 0:01:13]} 7. O-O {[%emt 0:04:42]} O-O-O {[%emt 0:05:53]} 8. dxc5 {[%emt 0:01:19]} Bxc5 {[%emt 0:00:51]} 9. b4 {[%emt 0:03:12]} Be7 {[%emt 0:02:17]} 10. Be3 {[%emt 0:18:09]} Qc7 {[%emt 0:00:22]} 11. Na3 {[%emt 0:01:25]} f6 {[%emt 0:11:56]} 12. Nb5 {[%emt 0:15:38]} Qb8 {[%emt 0:00:23]} 13. Nd6+ {[%emt 0:03:18]} Bxd6 {[%emt 0:01:15]} 14. exd6 {[%emt 0:00:08]} Qxd6 {[%emt 0:10:26]} 15. b5 {[%emt 0:01:46]} Na5 {[%emt 0:01:55]} 16. Qa4 {[%emt 0:02:07]} b6 {[%emt 0:02:58]} 17. c4 {[%emt 0:04:33]} dxc4 {[%emt 0:06:47]} 18. Bxc4 {[%emt 0:01:10]} Kb8 {[%emt 0:05:28]} 19. Rfd1 {[%emt 0:04:38]} Qe7 {[%emt 0:01:28]} 20. Re1 {[%emt 0:05:45]} g5 {[%emt 0:12:07]} 21. Nd4 {[%emt 0:07:09]} Nxc4 {[%emt 0:06:00]} 22. Qxc4 {[%emt 0:00:14]} e5 {[%emt 0:01:41]} 23. Nc6+ {[%emt 0:06:58]} Bxc6 {[%emt 0:00:15]} 24. bxc6 {[%emt 0:00:20]} Qc7 {[%emt 0:06:46]} 25. a4 {[%emt 0:03:45]} Rd6 {[%emt 0:04:54]} 26. a5 {[%emt 0:01:34]} Rxc6 {[%emt 0:02:36]} 27. Qb3 {[%emt 0:03:21]} b5 {[%emt 0:06:58]} 28. Qxb5+ {[%emt 0:01:26]} Ka8 {[%emt 0:00:36]} 29. a6 {[%emt 0:03:48]} Ne7 {[%emt 0:02:14]} 30. Qb7+ {[%emt 0:03:38]} Qxb7 {[%emt 0:00:11]} 31. axb7+ {[%emt 0:00:07]} Kb8 {[%emt 0:00:56]} 32. Rxa7 {[%emt 0:00:09]} Kc7 {[%emt 0:02:20]} 33. b8=Q+ {[%emt 0:00:57]} 1-0

[Event "22nd OIBM 2018"]
[Site "Gmund am Tegernsee"]
[Date "2018.10.27"]
[Round "1"]
[White "Slugin, Sergey"]
[Black "Gschwendtner, Klaus"]
[Result "1/2-1/2"]
[ECO "A62"]
[WhiteElo "2362"]
[BlackElo "2086"]
[Annotator "NA"]
[PlyCount "94"]
[EventDate "2018.10.27"]
[EventType "swiss"]
[EventCountry "GER"]
[SourceTitle "playchess.com"]
[Source "ChessBase"]
[SourceQuality "1"]
[TimeControl "40/5400+30:1800+30"]

1. d4 {[%emt 0:00:00]} Nf6 {[%emt 0:00:00]} 2. c4 {[%emt 0:00:00]} e6 {[%emt 0:00:09]} 3. g3 {[%emt 0:00:04]} c5 {[%emt 0:00:50]} 4. d5 {[%emt 0:00:12]} exd5 {[%emt 0:00:27]} 5. cxd5 {[%emt 0:00:07]} d6 {[%emt 0:00:22]} 6. Nc3 {[%emt 0:00:53]} g6 {[%emt 0:00:36]} 7. Nf3 {[%emt 0:00:18]} Bg7 {[%emt 0:00:27]} 8. Bg2 {[%emt 0:00:08]} O-O {[%emt 0:00:12]} 9. O-O {[%emt 0:00:06]} a6 {[%emt 0:03:18]} 10. a4 {[%emt 0:00:26]} Nbd7 {[%emt 0:01:21]} 11. Re1 {[%emt 0:01:42]} Re8 {[%emt 0:02:08]} 12. Nd2 {[%emt 0:00:56]} Rb8 {[%emt 0:06:55]} 13. Nc4 {[%emt 0:06:59]} Ne5 {[%emt 0:00:31]} 14. Na3 {[%emt 0:00:58]} Nh5 {[%emt 0:05:59]} 15. h3 {[%emt 0:01:52]} Bd7 {[%emt 0:12:55]} 16. f4 {[%emt 0:06:31]} b5 {[%emt 0:03:12]} 17. axb5 {[%emt 0:05:10]} axb5 {[%emt 0:00:03]} 18. fxe5 {[%emt 0:28:50]} b4 {[%emt 0:03:43]} 19. g4 {[%emt 0:02:57]} bxc3 {[%emt 0:01:12]} 20. bxc3 {[%emt 0:00:49]} Bxe5 {[%emt 0:07:54]} 21. gxh5 {[%emt 0:00:59]} Qh4 {[%emt 0:00:23]} 22. e4 {[%emt 0:17:25]} Bxh3 {[%emt 0:02:36]} 23. Bxh3 {[%emt 0:03:19]} Qxh3 {[%emt 0:00:27]} 24. Ra2 {[%emt 0:00:57]} Bxc3 {[%emt 0:02:03]} 25. Re3 {[%emt 0:03:53]} Bd4 {[%emt 0:03:26]} 26. Qxd4 {[%emt 0:00:30]} Qg4+ {[%emt 0:00:03]} 27. Rg2 {[%emt 0:00:08]} cxd4 {[%emt 0:02:03]} 28. Rxg4 {[%emt 0:00:08]} dxe3 {[%emt 0:00:06]} 29. Bxe3 {[%emt 0:00:37]} Rb4 {[%emt 0:20:32]} 30. hxg6 {[%emt 0:04:23]} hxg6 {[%emt 0:00:02]} 31. Kf2 {[%emt 0:00:40]} Rbxe4 {[%emt 0:00:26]} 32. Rxe4 {[%emt 0:01:23]} Rxe4 {[%emt 0:00:01]} 33. Nb5 {[%emt 0:00:20]} Re5 {[%emt 0:03:27]} 34. Nc3 {[%emt 0:00:17]} Rf5+ {[%emt 0:02:06]} 35. Ke2 {[%emt 0:01:03]} Kf8 {[%emt 0:00:42]} 36. Kd3 {[%emt 0:00:10]} Ke7 {[%emt 0:00:11]} 37. Ke4 {[%emt 0:00:15]} Re5+ {[%emt 0:00:28]} 38. Kd4 {[%emt 0:00:11]} Rh5 {[%emt 0:01:37]} 39. Ne4 {[%emt 0:05:41]} f5 {[%emt 0:01:33]} 40. Bg5+ {[%emt 0:00:36]} Kf8 {[%emt 0:01:07]} 41. Nf6 {[%emt 0:30:09]} Rh1 42. Nd7+ Kf7 {[%emt 0:33:12]} 43. Nb6 {[%emt 0:01:08]} Rd1+ {[%emt 0:01:45]} 44. Ke3 {[%emt 0:00:59]} Re1+ {[%emt 0:02:43]} 45. Kd3 {[%emt 0:01:44]} Rd1+ {[%emt 0:00:52]} 46. Ke3 {[%emt 0:00:05]} Re1+ {[%emt 0:00:11]} 47. Kd3 {[%emt 0:00:04]} Rd1+ {[%emt 0:00:17]} 1/2-1/2

[Event "22nd OIBM 2018"]
[Site "Gmund am Tegernsee"]
[Date "2018.10.27"]
[Round "1"]
[White "Bussard, Christian"]
[Black "Braun, Michael"]
[Result "1/2-1/2"]
[ECO "D00"]
[WhiteElo "2283"]
[BlackElo "2365"]
[Annotator "NA"]
[PlyCount "48"]
[EventDate "2018.10.27"]
[EventType "swiss"]
[EventCountry "GER"]
[SourceTitle "playchess.com"]
[Source "ChessBase"]
[SourceQuality "1"]
[TimeControl "40/5400+30:1800+30"]

1. d4 d5 2. Bf4 Nf6 3. e3 c5 4. c3 e6 5. Nd2 Nc6 6. Ngf3 Bd6 7. Bg3 O-O 8. Bd3 b6 9. Ne5 Bb7 10. f4 {[%emt 0:04:08]} Ne7 {[%emt 0:03:19]} 11. Bh4 {[%emt 0:03:21]} Ne4 {[%emt 0:07:26]} 12. Nxe4 {[%emt 0:04:23]} dxe4 {[%emt 0:00:04]} 13. Bxe7 {[%emt 0:02:04]} Qxe7 {[%emt 0:01:02]} 14. Be2 {[%emt 0:00:06]} cxd4 {[%emt 0:01:06]} 15. cxd4 {[%emt 0:00:06]} Bxe5 {[%emt 0:08:05]} 16. fxe5 {[%emt 0:01:20]} Qg5 {[%emt 0:10:39]} 17. Qd2 {[%emt 0:00:03]} Qxg2 {[%emt 0:00:32]} 18. O-O-O {[%emt 0:00:04]} Rac8+ {[%emt 0:00:17]} 19. Kb1 {[%emt 0:00:08]} Rc7 {[%emt 0:02:30]} 20. h4 {[%emt 0:05:08]} Rfc8 {[%emt 0:03:06]} 21. Rdg1 {[%emt 0:02:46]} Qf2 {[%emt 0:00:32]} 22. Rf1 {[%emt 0:00:05]} Qg2 {[%emt 0:00:22]} 23. Rfg1 {[%emt 0:12:55]} Qf2 {[%emt 0:00:12]} 24. Rf1 {[%emt 0:01:46]} Qg2 {[%emt 0:00:20]} 1/2-1/2

[Event "22nd OIBM 2018"]
[Site "Gmund am Tegernsee"]
[Date "2018.10.27"]
[Round "1"]
[White "Wenner, Tobias"]
[Black "Fier, Alexandr"]
[Result "1/2-1/2"]
[ECO "A05"]
[WhiteElo "2119"]
[BlackElo "2558"]
[Annotator "ChessBase"]
[PlyCount "132"]
[EventDate "2018.10.27"]
[EventType "swiss"]
[EventCountry "GER"]
[SourceTitle "playchess.com"]
[Source "ChessBase"]
[SourceQuality "1"]
[TimeControl "40/5400+30:1800+30"]

1. Nf3 {[%emt 0:00:00]} Nf6 {[%emt 0:00:00]} 2. c4 {[%emt 0:00:00]} g6 {[%emt 0:00:00]} 3. g3 {[%emt 0:00:00]} Bg7 {[%emt 0:00:00]} 4. Bg2 {[%emt 0:00:00]} O-O {[%emt 0:00:03]} 5. O-O {[%emt 0:00:06]} d6 {[%emt 0:00:03]} 6. d4 {[%emt 0:00:04]} Nc6 {[%emt 0:00:04]} 7. Nc3 {[%emt 0:01:05]} Rb8 {[%emt 0:00:05]} 8. h3 {[%emt 0:05:08]} a6 {[%emt 0:02:12]} 9. Re1 {[%emt 0:00:51]} Re8 {[%emt 0:02:37]} 10. e4 {[%emt 0:01:21]} e5 {[%emt 0:00:31]} 11. dxe5 {[%emt 0:07:21]} Nxe5 {[%emt 0:00:35]} 12. Nxe5 {[%emt 0:00:22]} dxe5 {[%emt 0:00:05]} 13. Be3 {[%emt 0:14:07]} Be6 {[%emt 0:00:27]} 14. b3 {[%emt 0:03:51]} Nd7 {[%emt 0:03:18]} 15. Qe2 {[%emt 0:06:47]} c6 {[%emt 0:00:25]} 16. c5 {[%emt 0:03:52]} f5 {[%emt 0:03:05]} 17. Rac1 {[%emt 0:04:30]} Qf6 {[%emt 0:00:48]} 18. exf5 {[%emt 0:03:51]} gxf5 {[%emt 0:00:08]} 19. Red1 {[%emt 0:07:40]} Qg6 {[%emt 0:01:13]} 20. Kh2 {[%emt 0:02:54]} Nf6 {[%emt 0:00:48]} 21. Qc2 {[%emt 0:10:31]} h5 {[%emt 0:01:43]} 22. Rd6 {[%emt 0:02:39]} Bf8 {[%emt 0:00:42]} 23. Rdd1 {[%emt 0:02:15]} Re7 {[%emt 0:00:16]} 24. Rg1 {[%emt 0:01:07]} Rh7 {[%emt 0:00:27]} 25. Rgd1 {[%emt 0:08:28]} Kf7 {[%emt 0:01:20]} 26. f4 {[%emt 0:02:08]} e4 {[%emt 0:01:36]} 27. Qf2 {[%emt 0:03:36]} Be7 {[%emt 0:00:16]} 28. Bd4 {[%emt 0:00:58]} h4 {[%emt 0:00:19]} 29. Bxf6 {[%emt 0:01:29]} hxg3+ {[%emt 0:01:16]} 30. Qxg3 {[%emt 0:00:09]} Qxf6 {[%emt 0:00:07]} 31. Qe3 {[%emt 0:01:07]} Rg8 {[%emt 0:01:10]} 32. Bf1 {[%emt 0:02:12]} Qh6 {[%emt 0:00:57]} 33. Ne2 {[%emt 0:00:34]} Rhg7 {[%emt 0:00:26]} 34. Rd2 {[%emt 0:02:03]} Rg6 {[%emt 0:00:23]} 35. Rcc2 {[%emt 0:01:47]} Qg7 {[%emt 0:00:11]} 36. Rc1 {[%emt 0:00:30]} Rg2+ {[%emt 0:04:13]} 37. Kh1 {[%emt 0:00:02]} Bd5 {[%emt 0:00:06]} 38. Rcd1 {[%emt 0:01:10]} Bxc5 {[%emt 0:00:08]} 39. Rxd5 {[%emt 0:01:36]} Rg1+ {[%emt 0:11:36]} 40. Nxg1 {[%emt 0:00:57]} Qxg1+ {[%emt 0:00:04]} 41. Qxg1 {[%emt 0:30:04]} Rxg1+ {[%emt 0:30:03]} 42. Kh2 {[%emt 0:00:20]} cxd5 {[%emt 0:00:03]} 43. Rxd5 Bf2 44. Rxf5+ {[%emt 0:00:00]} Ke6 {[%emt 0:00:00]} 45. Re5+ {[%emt 0:00:00]} Kf6 {[%emt 0:00:00]} 46. Bg2 {[%emt 0:00:00]} e3 {[%emt 0:00:00]} 47. Bxb7 {[%emt 0:00:00]} Rg7 {[%emt 0:00:00]} 48. Bxa6 {[%emt 0:00:00]} Bg3+ {[%emt 0:00:00]} 49. Kh1 {[%emt 0:00:00]} Bxf4 {[%emt 0:00:00]} 50. Re4 {[%emt 0:00:00]} Kg5 {[%emt 0:00:00]} 51. a4 {[%emt 0:00:00]} Rd7 {[%emt 0:00:00]} 52. Bc4 {[%emt 0:00:00]} Rd2 {[%emt 0:00:00]} 53. Kg1 {[%emt 0:00:00]} Kf5 {[%emt 0:00:00]} 54. Re8 {[%emt 0:00:00]} Be5 {[%emt 0:00:00]} 55. Kf1 {[%emt 0:00:00]} Rf2+ {[%emt 0:00:00]} 56. Ke1 {[%emt 0:00:00]} Ra2 {[%emt 0:00:00]} 57. Kd1 {[%emt 0:01:18]} Kf4 {[%emt 0:00:00]} 58. Rf8+ {[%emt 0:01:07]} Kg3 {[%emt 0:00:00]} 59. Rg8+ {[%emt 0:02:14]} Kxh3 {[%emt 0:00:00]} 60. a5 {[%emt 0:01:05]} Bf4 {[%emt 0:00:00]} 61. a6 {[%emt 0:00:16]} Rd2+ {[%emt 0:00:00]} 62. Ke1 {[%emt 0:00:30]} Bg3+ {[%emt 0:00:00]} 63. Kf1 {[%emt 0:01:41]} Rf2+ {[%emt 0:00:00]} 64. Ke1 {[%emt 0:00:15]} Ra2+ {[%emt 0:00:00]} 65. Kf1 {[%emt 0:00:07]} Bh4 {[%emt 0:00:00]} 66. b4 {[%emt 0:01:29]} e2+ {[%emt 0:00:00]} 1/2-1/2

[Event "22nd OIBM 2018"]
[Site "Gmund am Tegernsee"]
[Date "2018.10.27"]
[Round "1"]
[White "Pollmann, Sascha"]
[Black "Morawietz, Dieter"]
[Result "0-1"]
[ECO "A04"]
[WhiteElo "2091"]
[BlackElo "2408"]
[Annotator "NA"]
[PlyCount "54"]
[EventDate "2018.10.27"]
[EventType "swiss"]
[EventCountry "GER"]
[SourceTitle "playchess.com"]
[Source "ChessBase"]
[SourceQuality "1"]
[TimeControl "40/5400+30:1800+30"]

1. Nf3 {[%emt 0:00:00]} c5 {[%emt 0:00:05]} 2. g3 {[%emt 0:00:00]} Nc6 {[%emt 0:00:17]} 3. c4 {[%emt 0:00:16]} g6 {[%emt 0:00:26]} 4. d4 {[%emt 0:00:28]} cxd4 {[%emt 0:00:06]} 5. Nxd4 {[%emt 0:00:18]} Bg7 {[%emt 0:00:05]} 6. Nc2 {[%emt 0:00:22]} d6 {[%emt 0:04:29]} 7. Bg2 {[%emt 0:00:51]} Bd7 {[%emt 0:00:33]} 8. O-O {[%emt 0:00:51]} Rc8 {[%emt 0:01:58]} 9. Nc3 {[%emt 0:05:10]} Na5 {[%emt 0:03:32]} 10. Ne3 {[%emt 0:03:23]} Nf6 {[%emt 0:08:00]} 11. Qd3 {[%emt 0:05:34]} Ng4 {[%emt 0:03:20]} 12. Nxg4 {[%emt 0:04:55]} Bxg4 {[%emt 0:00:07]} 13. f3 {[%emt 0:21:18]} Bd7 {[%emt 0:05:50]} 14. b3 {[%emt 0:00:47]} b5 {[%emt 0:00:10]} 15. Be3 {[%emt 0:03:29]} bxc4 {[%emt 0:04:44]} 16. bxc4 {[%emt 0:00:23]} Nxc4 {[%emt 0:03:10]} 17. Rac1 {[%emt 0:01:41]} Bf5 {[%emt 0:19:51]} 18. Ne4 {[%emt 0:00:25]} d5 {[%emt 0:00:44]} 19. Rfd1 {[%emt 0:04:09]} Nxe3 {[%emt 0:02:19]} 20. Qxe3 {[%emt 0:01:12]} Rxc1 {[%emt 0:00:08]} 21. Qxc1 {[%emt 0:00:31]} Qb6+ {[%emt 0:01:03]} 22. Nf2 {[%emt 0:09:18]} Bd4 {[%emt 0:03:20]} 23. Rf1 {[%emt 0:05:45]} O-O {[%emt 0:00:20]} 24. f4 {[%emt 0:02:19]} Rc8 {[%emt 0:00:57]} 25. Qa3 {[%emt 0:03:28]} e6 {[%emt 0:03:40]} 26. Bf3 {[%emt 0:06:15]} Rc3 {[%emt 0:02:02]} 27. Qa4 {[%emt 0:15:33]} Bh3 {[%emt 0:00:19]} 0-1

[Event "22nd OIBM 2018"]
[Site "Gmund am Tegernsee"]
[Date "2018.10.27"]
[Round "1"]
[White "Klee, Helmut"]
[Black "Miller, Eduard"]
[Result "0-1"]
[ECO "D02"]
[WhiteElo "2089"]
[BlackElo "2383"]
[Annotator "NA"]
[PlyCount "102"]
[EventDate "2018.10.27"]
[EventType "swiss"]
[EventCountry "GER"]
[SourceTitle "playchess.com"]
[Source "ChessBase"]
[SourceQuality "1"]
[TimeControl "40/5400+30:1800+30"]

1. d4 {[%emt 0:00:00]} d5 {[%emt 0:00:00]} 2. Nf3 {[%emt 0:00:00]} e6 {[%emt 0:00:00]} 3. c4 {[%emt 0:00:20]} a6 {[%emt 0:00:56]} 4. g3 {[%emt 0:02:26]} dxc4 {[%emt 0:01:15]} 5. a4 {[%emt 0:01:36]} c5 {[%emt 0:01:30]} 6. Nbd2 {[%emt 0:14:25]} cxd4 {[%emt 0:10:16]} 7. Nxc4 {[%emt 0:01:08]} Nc6 {[%emt 0:00:32]} 8. Bg2 {[%emt 0:01:44]} e5 {[%emt 0:01:46]} 9. O-O {[%emt 0:02:39]} f6 {[%emt 0:06:00]} 10. a5 {[%emt 0:05:12]} Be6 {[%emt 0:02:02]} 11. Nb6 {[%emt 0:05:08]} Rb8 {[%emt 0:04:01]} 12. Qa4 {[%emt 0:07:03]} Qd6 {[%emt 0:05:36]} 13. Bd2 {[%emt 0:05:39]} Nge7 {[%emt 0:03:15]} 14. Rfd1 {[%emt 0:03:06]} Nc8 {[%emt 0:04:30]} 15. Nc4 {[%emt 0:04:00]} Qc5 {[%emt 0:12:13]} 16. Na3 {[%emt 0:04:15]} Be7 {[%emt 0:15:39]} 17. Rac1 {[%emt 0:11:57]} Qd6 {[%emt 0:01:07]} 18. Nc4 {[%emt 0:06:21]} Qd7 {[%emt 0:00:27]} 19. Be1 {[%emt 0:02:32]} O-O {[%emt 0:01:18]} 20. b3 {[%emt 0:02:39]} Qe8 {[%emt 0:01:20]} 21. e3 {[%emt 0:01:25]} dxe3 {[%emt 0:00:45]} 22. Nxe3 {[%emt 0:00:22]} Qf7 {[%emt 0:00:22]} 23. Nc4 {[%emt 0:01:12]} N8a7 {[%emt 0:02:29]} 24. Bc3 {[%emt 0:03:20]} Nb5 {[%emt 0:00:49]} 25. Ba1 {[%emt 0:00:47]} Rfd8 {[%emt 0:00:23]} 26. Qa2 {[%emt 0:03:46]} Rxd1+ {[%emt 0:08:31]} 27. Rxd1 {[%emt 0:00:14]} Rd8 {[%emt 0:00:18]} 28. Rc1 {[%emt 0:03:21]} Nb4 {[%emt 0:04:29]} 29. Qe2 {[%emt 0:00:50]} Nd3 {[%emt 0:00:19]} 30. Rd1 {[%emt 0:01:10]} Nc5 {[%emt 0:00:22]} 31. Rxd8+ {[%emt 0:01:05]} Bxd8 {[%emt 0:00:05]} 32. Nfd2 {[%emt 0:01:24]} Bd5 {[%emt 0:01:39]} 33. Qe3 {[%emt 0:00:50]} Bxg2 {[%emt 0:01:18]} 34. Kxg2 {[%emt 0:00:50]} Qd5+ {[%emt 0:00:28]} 35. Kg1 {[%emt 0:00:24]} Be7 {[%emt 0:01:01]} 36. Bb2 {[%emt 0:00:33]} Qd3 {[%emt 0:02:21]} 37. Qxd3 {[%emt 0:01:12]} Nxd3 {[%emt 0:00:04]} 38. Kf1 {[%emt 0:00:50]} Bb4 {[%emt 0:05:31]} 39. Ba1 {[%emt 0:00:51]} Kf7 {[%emt 0:00:49]} 40. Ke2 {[%emt 0:00:47]} Nc5 {[%emt 0:00:11]} 41. Ke3 {[%emt 0:31:53]} Ke6 {[%emt 0:31:19]} 42. Bb2 {[%emt 0:00:00]} Nd7 {[%emt 0:00:00]} 43. f4 {[%emt 0:00:00]} exf4+ {[%emt 0:00:00]} 44. Kxf4 {[%emt 0:00:00]} Nb8 {[%emt 0:00:00]} 45. g4 {[%emt 0:00:00]} Nc6 {[%emt 0:00:00]} 46. Ne4 {[%emt 0:00:00]} Nxa5 {[%emt 0:00:00]} 47. Nxa5 {[%emt 0:00:00]} Bxa5 {[%emt 0:00:00]} 48. Nc5+ {[%emt 0:00:00]} Kd5 {[%emt 0:00:00]} 49. Nxb7 {[%emt 0:00:00]} Bc7+ {[%emt 0:00:00]} 50. Kf5 {[%emt 0:00:00]} Kc6 {[%emt 0:00:00]} 51. h4 {[%emt 0:00:00]} Kxb7 {[%emt 0:00:00] Ke5} 0-1